bitfinex/quotes_ETHUSD_20240721
["timestamp","ask_amount","ask_price","bid_price","bid_amount"]
[1721530996872,0.89363814,3520.3,3520.2,0.58152154]
[1721530997078,0.89363814,3520.4,3520.2,0.70704089]
[1721530997271,0.89363814,3520.4,3520.2,0.12551935]
[1721530997660,0.89363814,3520.3,3520.2,0.12551935]
[1721530998072,0.89363814,3520.4,3520.2,0.12551935]
[1721531000384,1.73163814,3520.5,3520.2,0.12551935]
[1721531000583,0.89363814,3520.5,3520.2,0.12551935]
[1721531001098,4.03230985,3520.6,3520.2,0.12551935]
[1721531001099,0.89363814,3520.4,3520.2,0.12551935]
[1721531001309,0.89363814,3520.5,3520.2,0.61106687]
[1721531002265,1.73163814,3520.7,3520.3,2.2724]
[1721531002468,1.73163814,3520.7,3520.3,2.39787684]
[1721531003158,3.73390814,3520.8,3520.3,2.39787684]
[1721531003358,2.84027,3520.8,3520.4,0.57242244]
[1721531003635,3.73390814,3520.8,3520.5,0.12534469]
[1721531003797,3.73390814,3520.8,3520.3,2.2724]
[1721531004208,3.73390814,3520.8,3520.2,0.48554752]
[1721531004209,1.73163814,3520.9,3520.5,2.2724]
[1721531004425,1.73163814,3520.9,3520.6,0.1253323]
[1721531005225,0.838,3520.9,3520.6,0.1253323]
[1721531005942,3.67834,3520.7,3520.6,0.1253323]
[1721531006300,3.67834,3520.7,3520.2,2.2724]
[1721531006611,0.838,3520.4,3520.2,2.2724]
[1721531008153,0.838,3520.6,3520.2,2.2724]
[1721531008359,0.838,3520.6,3520.2,2.783727]
[1721531011056,0.838,3520.4,3520.2,2.2724]
[1721531011455,0.838,3520.4,3519.8,7.45]
[1721531011456,0.838,3520.4,3519.8,9.7326]
[1721531011663,2.4465,3520.5,3519.8,7.45]
[1721531011664,0.838,3520.0,3519.8,7.45]
[1721531012930,0.838,3520.0,3519.5,2.2826]
[1721531013439,3.67892,3520.0,3519.5,2.2826]
[1721531013753,2.84073,3520.3,3519.5,2.2826]
[1721531013754,3.67908,3519.8,3519.5,2.2826]
[1721531014652,0.838,3519.8,3519.5,2.2826]
[1721531015550,3.67911,3519.8,3519.5,2.2826]
[1721531016113,2.84111,3519.8,3519.5,2.2826]
[1721531016614,2.84111,3519.8,3519.2,9.7326]
[1721531016615,2.84107,3519.8,3519.2,9.7326]
[1721531018113,2.84123,3519.6,3519.2,9.7326]
[1721531018776,2.84123,3519.6,3519.3,0.12560211]
[1721531020222,2.84116,3519.7,3519.3,0.12560211]
[1721531020927,2.84116,3519.7,3519.4,2.2826]
[1721531021248,2.84084,3520.1,3519.4,2.64900992]
[1721531021430,4.85184,3520.1,3519.4,0.12558971]
[1721531021617,2.84127,3519.6,3519.4,0.12558971]
[1721531021957,2.84127,3519.6,3519.1,2.2826]
[1721531022489,2.84127,3519.6,3519.2,0.12561451]
[1721531023254,2.84115,3519.7,3519.2,0.12561451]
[1721531023441,2.84115,3519.7,3519.2,0.65061396]
[1721531025097,3.73455814,3520.0,3519.3,5.12405]
[1721531025262,1.19188985,3520.1,3519.4,2.2826]
[1721531025263,2.84099,3519.9,3519.4,2.2826]
[1721531025464,2.84099,3519.9,3519.5,0.12564147]
[1721531025465,0.65753781,3519.9,3519.5,0.12564147]
[1721531025652,2.8415,3519.3,3519.1,2.2826]
[1721531025987,2.8415,3519.3,3519.2,0.12567868]
[1721531027080,2.84131,3519.5,3519.2,0.12567868]
[1721531028747,2.8414,3519.4,3519.2,0.12567868]
[1721531034985,2.84123,3519.6,3519.2,0.12567868]
[1721531037060,0.89363814,3519.9,3519.3,2.4852]
[1721531037262,0.89363814,3520.0,3519.4,2.61089056]
[1721531037466,3.73455814,3520.0,3519.4,2.61089056]
[1721531037715,2.84092,3520.0,3519.4,2.4852]
[1721531037870,2.84092,3520.0,3519.5,0.12567816]
[1721531039365,2.84092,3520.0,3519.5,0.67091198]
[1721531040706,2.84099,3519.9,3519.5,0.67091198]
[1721531041406,2.84099,3519.9,3519.5,0.12567816]
[1721531043110,3.67896,3520.0,3519.5,0.12567816]
[1721531043701,2.84096,3520.0,3519.6,2.4852]
[1721531043910,2.84084,3520.1,3519.7,0.12565337]
[1721531044103,2.84092,3520.0,3519.8,2.4852]
[1721531044318,2.84092,3520.0,3519.9,0.12562857]
[1721531044803,2.84092,3520.0,3519.8,2.4852]
[1721531045171,2.84092,3520.0,3519.9,0.12562857]
[1721531047312,3.67892,3520.0,3519.9,0.12562857]
[1721531047516,3.67892,3520.0,3519.4,2.4852]
[1721531047669,3.67892,3520.0,3519.5,0.12567816]
[1721531048077,3.67892,3520.0,3519.6,2.4336]
[1721531048298,3.67892,3520.0,3519.7,0.12565337]
[1721531048646,2.84099,3519.9,3519.7,0.12565337]
[1721531054221,3.73462814,3519.9,3519.7,0.12565337]
[1721531054739,2.84099,3519.9,3519.7,0.12565337]
[1721531055294,3.73462814,3519.9,3519.7,0.12565337]
[1721531056731,2.84099,3519.9,3519.7,0.12565337]
[1721531057096,1.73163814,3520.0,3519.7,0.12565337]
[1721531057336,0.89363814,3520.0,3519.7,0.12565337]
[1721531057837,0.89221756,3520.0,3519.7,0.12565337]
[1721531058194,0.89221756,3520.0,3519.7,0.66571371]
[1721531060229,0.89221756,3520.0,3519.8,2.4336]
[1721531060429,1.19188985,3520.2,3519.8,2.4336]
[1721531060625,1.19188985,3520.3,3519.9,0.12559844]
[1721531060827,4.87049985,3520.4,3520.0,2.4336]
[1721531061229,4.87049985,3520.4,3520.1,0.12553174]
[1721531062935,3.67861,3520.4,3520.1,0.12553174]
[1721531063766,4.87049985,3520.4,3520.1,0.12553174]
[1721531064003,2.84066,3520.3,3520.1,0.12553174]
[1721531064282,4.87062985,3520.2,3520.1,0.12553174]
[1721531064631,3.67874,3520.2,3520.1,0.12553174]
[1721531064833,4.87062985,3520.2,3520.1,0.12553174]
[1721531065031,3.67874,3520.2,3520.1,0.12553174]
[1721531066964,4.57078517,3520.2,3520.1,0.12553174]
[1721531069867,3.67874,3520.2,3520.1,0.12553174]
[1721531070035,4.57064554,3520.2,3520.1,0.12553174]
[1721531070235,4.57063843,3520.2,3520.1,0.12553174]
[1721531070470,4.57063848,3520.2,3520.1,0.12553174]
[1721531070861,4.57063268,3520.2,3520.1,0.12553174]
[1721531073278,3.73263268,3520.2,3520.1,0.12553174]
[1721531073478,2.84074,3520.2,3520.1,0.12553174]
[1721531074771,3.73263268,3520.2,3520.1,0.12553174]
[1721531076066,4.87062985,3520.2,3520.1,0.12553174]
[1721531077143,6.51948,3520.2,3520.1,0.12553174]
[1721531077385,2.84098,3520.0,3519.6,2.278]
[1721531077703,3.73318617,3519.9,3519.7,0.1255355]
[1721531080441,0.89219617,3519.8,3519.7,0.1255355]
[1721531080946,3.73318617,3519.9,3519.7,0.1255355]
[1721531081347,0.89219617,3519.8,3519.7,0.1255355]
[1721531084152,3.73318617,3519.9,3519.7,0.1255355]
[1721531084443,0.89219617,3519.8,3519.7,0.1255355]
[1721531084868,3.73318617,3519.9,3519.7,0.1255355]
[1721531085273,0.89219617,3519.8,3519.7,0.1255355]
[1721531085883,0.89219617,3519.9,3519.7,0.1255355]
[1721531086071,0.89219617,3519.9,3519.8,0.24035355]
[1721531086583,0.89219617,3520.0,3519.8,0.36587666]
[1721531086890,0.89219617,3520.0,3519.8,0.12552311]
[1721531087383,3.73310617,3520.0,3519.9,0.12551071]
[1721531087683,2.84091,3520.0,3519.6,2.278]
[1721531087889,4.0305049,3520.0,3519.9,0.12551071]
[1721531088074,4.0305049,3520.0,3519.6,2.278]
[1721531088387,0.89323335,3519.9,3519.6,2.789937]
[1721531088589,0.89323335,3519.9,3519.7,0.1255355]
[1721531089792,3.73414335,3520.0,3519.7,0.1255355]
[1721531091589,0.89323335,3519.9,3519.7,0.1255355]
[1721531092150,3.73414335,3520.0,3519.7,0.1255355]
[1721531092597,0.89323335,3519.9,3519.7,0.1255355]
[1721531092754,2.84091,3520.0,3519.7,0.1255355]
[1721531092755,3.73414335,3520.0,3519.7,0.1255355]
[1721531092955,0.89323335,3519.9,3519.7,0.1255355]
[1721531093207,3.73414335,3520.0,3519.7,0.1255355]
[1721531093357,0.89323335,3519.9,3519.7,0.1255355]
[1721531093559,3.73414335,3520.0,3519.7,0.1255355]
[1721531094167,0.89323335,3519.9,3519.7,2.6230355]
[1721531094373,0.89323335,3519.8,3519.7,3.13913191]
[1721531094772,0.89323335,3519.9,3519.7,3.13913191]
[1721531095791,0.89323335,3519.8,3519.7,3.13913191]
[1721531097700,1.1895949,3520.0,3519.7,3.13913191]
[1721531097701,0.89323335,3519.9,3519.7,3.13913191]
[1721531097889,0.89323335,3519.8,3519.7,3.13913191]
[1721531098286,0.89323335,3519.8,3519.7,2.6230355]
[1721531098463,1.1895949,3519.9,3519.7,2.6230355]
[1721531098875,4.0306349,3519.9,3519.7,0.1255355]
[1721531099275,2.84107,3519.8,3519.5,2.4975]
[1721531099482,0.89342379,3519.7,3519.5,2.4975]
[1721531099801,0.89342379,3519.7,3519.5,3.49225]
[1721531101164,3.73457379,3519.7,3519.5,3.49225]
[1721531101364,0.89342379,3519.7,3519.5,3.49225]
[1721531103602,4.0306249,3519.9,3519.5,3.49225]
[1721531103603,0.89342379,3519.8,3519.5,3.49225]
[1721531104421,0.89342379,3519.9,3519.5,3.836]
[1721531104722,0.89342379,3519.9,3519.6,3.249047]
[1721531105204,0.89342379,3520.0,3519.6,3.249047]
[1721531106014,1.1895949,3520.1,3519.6,3.249047]
[1721531106015,0.89342379,3519.9,3519.6,3.249047]
[1721531108113,0.89342379,3520.0,3519.7,2.4192]
[1721531108267,0.89342379,3520.1,3519.9,2.4192]
[1721531108606,0.89342379,3520.2,3520.0,0.1243551]
[1721531109013,0.89342379,3520.1,3520.0,0.1243551]
[1721531110421,0.89342379,3520.2,3520.0,0.1243551]
[1721531110783,0.89342379,3520.1,3520.0,0.1243551]
[1721531111179,1.1895949,3520.2,3520.0,0.1243551]
[1721531111983,4.8683449,3520.2,3520.0,0.1243551]
[1721531112193,5.16747932,3520.2,3520.0,0.1243551]
[1721531112395,5.16747932,3520.2,3519.7,2.4192]
[1721531112610,0.8931148,3519.9,3519.8,0.12437334]
[1721531112799,1.19081973,3520.0,3519.7,2.4192]
[1721531113124,0.89313027,3519.8,3519.7,2.4192]
[1721531113323,0.89313027,3519.9,3519.7,2.4192]
[1721531116012,4.03164973,3520.1,3519.7,2.4192]
[1721531116013,0.89313027,3520.0,3519.7,2.4192]
[1721531116236,0.89313027,3520.0,3519.8,0.625526]
[1721531116857,0.89313027,3519.9,3519.8,0.625526]
[1721531117022,0.89313027,3520.0,3519.8,0.625526]
[1721531119061,0.89313027,3520.0,3519.9,2.3746]
[1721531119226,0.89313027,3520.0,3519.9,2.9587336]
[1721531120257,1.19081973,3520.2,3519.9,2.9587336]
[1721531120258,0.89313027,3520.2,3519.9,2.9587336]
[1721531120466,0.89313027,3520.3,3520.0,2.3746]
[1721531120747,0.89313027,3520.4,3520.0,2.3746]
[1721531120952,0.89313027,3520.4,3519.9,2.84098]
[1721531120953,0.89313027,3520.4,3520.2,2.3746]
[1721531121353,0.89313027,3520.3,3520.2,2.3746]
[1721531121517,0.89313027,3520.4,3520.2,2.3746]
[1721531122156,0.89313027,3520.3,3520.2,2.3746]
[1721531122508,0.89313027,3520.4,3520.2,2.3746]
[1721531123550,0.89313027,3520.4,3520.3,0.12427732]
[1721531124045,0.89313027,3520.5,3520.3,0.12427732]
[1721531124452,0.89313027,3520.4,3520.3,0.12427732]
[1721531124752,0.89313027,3520.5,3520.3,0.12427732]
[1721531125841,0.89313027,3520.4,3520.3,0.12427732]
[1721531126347,1.19081973,3520.5,3520.3,0.12427732]
[1721531126348,0.89313027,3520.5,3520.3,0.12427732]
[1721531127247,0.89313027,3520.4,3520.3,0.12427732]
[1721531127419,0.89313027,3520.5,3520.3,0.12427732]
[1721531129271,0.89313027,3520.5,3520.3,0.71040985]
[1721531129468,0.89313027,3520.7,3520.4,2.4607]
[1721531129671,0.89313027,3520.8,3520.4,2.4607]
[1721531129886,0.89313027,3520.8,3520.5,0.12425254]
[1721531130085,0.89313027,3520.8,3520.4,2.4607]
[1721531130254,0.89313027,3520.8,3520.6,0.12414851]
[1721531130456,4.03094973,3521.0,3520.5,0.65428774]
[1721531130457,0.89313027,3520.9,3520.5,0.65428774]
[1721531130682,0.89313027,3520.9,3520.7,0.12412695]
[1721531130895,0.89313027,3520.9,3520.6,0.12413935]
[1721531131197,0.89313027,3520.9,3520.7,0.12412695]
[1721531131397,0.89313027,3520.9,3520.4,2.4607]
[1721531131560,0.89313027,3520.9,3520.5,0.65428774]
[1721531132100,0.89313027,3520.9,3520.5,0.70787645]
[1721531132754,3.73326027,3521.0,3520.5,0.70787645]
[1721531133159,0.89313027,3520.9,3520.5,0.70787645]
[1721531133405,3.73326027,3521.0,3520.5,0.70787645]
[1721531134204,3.73332027,3520.9,3520.5,0.70787645]
[1721531134497,3.73332027,3520.9,3520.5,0.17774045]
[1721531136624,2.84019,3520.9,3520.5,0.17774045]
[1721531139109,3.73332027,3520.9,3520.5,0.17774045]
[1721531139434,2.84019,3520.9,3520.5,0.17774045]
[1721531139636,3.73332027,3520.9,3520.5,0.17774045]
[1721531140543,2.84019,3520.9,3520.5,0.17774045]
[1721531140900,3.73332027,3520.9,3520.5,0.17774045]
[1721531141737,2.84019,3520.9,3520.5,0.17774045]
[1721531144130,3.73332027,3520.9,3520.5,0.17774045]
[1721531146810,0.89313027,3520.9,3520.5,0.17774045]
[1721531147048,0.89313027,3520.9,3520.4,2.4607]
[1721531147049,0.838,3520.8,3520.4,2.4607]
[1721531147248,2.8404,3520.7,3520.4,2.4607]
[1721531147561,2.8404,3520.7,3520.5,0.17769414]
[1721531157047,3.73334027,3520.9,3520.5,0.17769414]
[1721531157245,3.73334027,3520.9,3520.5,0.72560755]
[1721531158388,3.73334027,3520.9,3520.5,0.17769414]
[1721531159884,0.89313027,3520.8,3520.5,0.17769414]
[1721531160245,3.73334027,3520.9,3520.5,0.17769414]
[1721531160603,0.89313027,3520.8,3520.5,0.17769414]
[1721531162456,0.89313027,3520.7,3520.5,0.17769414]
[1721531162669,0.89313027,3520.8,3520.5,0.17769414]
[1721531164369,0.89313027,3520.7,3520.5,0.17769414]
[1721531164891,0.89313027,3520.8,3520.5,0.72559855]
[1721531165195,0.89313027,3520.8,3520.6,2.3158]
[1721531165399,1.19081973,3520.9,3520.6,2.3158]
[1721531165400,0.89313027,3520.7,3520.6,2.3158]
[1721531165765,0.89313027,3520.7,3520.6,2.49347109]
[1721531170757,0.89331504,3520.7,3520.6,2.49347109]
[1721531170956,5.16698361,3521.0,3520.6,2.49347109]
[1721531170957,1.19081973,3520.8,3520.6,2.49347109]
[1721531171211,5.16698361,3521.0,3520.6,2.49347109]
[1721531171212,0.89332766,3520.7,3520.6,2.49347109]
[1721531172683,1.19081973,3520.8,3520.6,2.49347109]
[1721531174593,1.19081973,3520.7,3520.6,2.49347109]
[1721531174823,1.19081973,3520.7,3520.6,0.17767109]
[1721531175094,1.19081973,3520.7,3520.4,2.4863]
[1721531175434,0.89354222,3520.5,3520.4,2.4863]
[1721531177527,1.19081973,3520.6,3520.4,2.4863]
[1721531177528,2.02881973,3520.6,3520.4,2.4863]
[1721531177735,1.19081973,3520.5,3519.9,2.4863]
[1721531177892,0.89345573,3520.4,3519.9,6.94868806]
[1721531183830,0.89345573,3520.4,3520.0,0.17772841]
[1721531190732,0.89345573,3520.5,3520.0,0.17772841]
[1721531191073,0.89345573,3520.5,3520.0,1.97905611]
[1721531191604,0.89345573,3520.4,3520.0,1.97905611]
[1721531195589,0.89345573,3520.5,3520.0,1.97905611]
[1721531195795,0.89345573,3520.5,3520.1,2.3021]
[1721531196155,0.89345573,3520.5,3520.2,0.17771496]
[1721531199226,0.89345573,3520.4,3520.2,0.17771496]
[1721531199517,0.89345573,3520.3,3519.9,2.84098]
[1721531199732,0.89345573,3520.3,3520.0,1.7211648]
[1721531199881,0.89345573,3520.3,3520.0,0.1777428]
[1721531200079,2.84082,3520.1,3520.0,0.1777428]
[1721531200289,2.84082,3520.1,3519.8,2.3021]
[1721531200602,2.84082,3520.1,3519.9,0.17775672]
[1721531202845,2.84075,3520.2,3519.9,0.17775672]
[1721531203488,4.57220573,3520.2,3519.9,0.17775672]
[1721531203686,4.57220573,3520.2,3519.6,2.3021]
[1721531203916,4.57220573,3520.2,3519.6,5.21946562]
[1721531204144,4.57220573,3520.2,3519.7,0.17191872]
[1721531207370,3.73420573,3520.2,3519.7,0.17191872]
[1721531208938,2.84075,3520.2,3519.7,0.17191872]
[1721531209568,2.84083,3520.1,3519.7,0.17191872]
[1721531210026,3.73428573,3520.1,3519.7,0.17191872]
[1721531210225,2.84083,3520.1,3519.7,0.17191872]
[1721531216504,4.03139973,3520.4,3519.8,2.3804]
[1721531216505,0.89345573,3520.3,3519.8,2.3804]
[1721531216812,0.89345573,3520.3,3519.9,0.1719105]
[1721531217093,3.73415573,3520.3,3519.9,0.1719105]
[1721531218080,2.8407,3520.3,3519.9,0.1719105]
[1721531218776,3.73415573,3520.3,3519.9,0.1719105]
[1721531219061,2.8407,3520.3,3519.9,0.1719105]
[1721531219273,0.89345573,3520.4,3520.0,2.3804]
[1721531219583,1.19081973,3520.5,3520.1,2.55228266]
[1721531219584,0.89345573,3520.5,3520.1,2.55228266]
[1721531219888,4.03115973,3520.7,3520.1,2.55228266]
[1721531219889,0.89345573,3520.4,3520.1,2.55228266]
[1721531220722,0.89345573,3520.3,3520.1,2.55228266]
[1721531221419,3.67842,3520.6,3520.1,2.55228266]
[1721531221420,0.89345573,3520.4,3520.1,2.55228266]
[1721531221715,0.89345573,3520.5,3520.1,2.55228266]
[1721531226219,4.03116973,3520.7,3520.1,2.55228266]
[1721531226220,0.89345573,3520.6,3520.1,2.55228266]
[1721531226622,0.89345573,3520.5,3520.1,2.55228266]
[1721531228819,4.03116973,3520.7,3520.1,2.55228266]
[1721531228820,0.89345573,3520.6,3520.1,2.55228266]
[1721531229115,0.89345573,3520.5,3520.1,2.55228266]
[1721531229340,0.89345573,3520.6,3520.1,2.55228266]
[1721531229497,0.89345573,3520.5,3520.1,2.55228266]
[1721531234767,0.89345573,3520.4,3520.1,2.55228266]
[1721531234908,0.89345573,3520.5,3520.1,2.55228266]
[1721531235342,0.89345573,3520.2,3520.1,2.55228266]
[1721531236361,0.89345573,3520.3,3520.1,2.55228266]
[1721531238211,0.89345573,3520.2,3520.1,2.55228266]
[1721531239605,0.89345573,3520.3,3520.1,2.55228266]
[1721531244417,0.89345573,3520.3,3520.1,3.09161493]
[1721531244671,0.89345573,3520.4,3520.1,3.09161493]
[1721531247828,0.89345573,3520.4,3520.1,3.04161493]
[1721531248023,0.89345573,3520.4,3520.1,2.50228266]
[1721531253974,0.89345573,3520.5,3520.1,2.50228266]
[1721531255180,0.89345573,3520.4,3520.1,2.50228266]
[1721531255330,0.89345573,3520.5,3520.1,2.50228266]
[1721531255760,0.89345573,3520.5,3520.4,2.3693]
[1721531255965,0.89345573,3520.6,3520.4,2.54107022]
[1721531257775,0.89345573,3520.6,3520.4,5.38164022]
[1721531258006,1.19081973,3520.8,3520.4,5.38164022]
[1721531258007,0.89345573,3520.8,3520.4,5.38164022]
[1721531258287,0.89345573,3520.8,3520.4,6.20387724]
[1721531258439,0.89345573,3520.8,3520.4,3.19153702]
[1721531258641,0.89345573,3520.8,3520.6,2.3693]
[1721531258944,0.89345573,3520.8,3520.7,0.17172848]
[1721531260237,0.89345573,3520.9,3520.7,0.17172848]
[1721531260685,0.89345573,3520.8,3520.7,0.17172848]
[1721531262741,0.89345573,3520.9,3520.7,0.17172848]
[1721531263276,0.89345573,3520.9,3520.7,3.01206848]
[1721531263482,0.89345573,3521.0,3520.8,5.21426]
[1721531263781,0.89345573,3521.1,3520.9,0.17160383]
[1721531264077,0.89345573,3521.2,3520.9,0.17160383]
[1721531264703,1.73145573,3521.3,3520.9,0.17160383]
[1721531264902,0.89345573,3521.1,3520.9,0.17160383]
[1721531265666,0.89345573,3521.2,3520.9,0.17160383]
[1721531266897,0.89345573,3521.2,3521.0,2.374]
[1721531267337,0.89345573,3521.3,3521.1,0.17157601]
[1721531267903,0.89345573,3521.2,3521.1,0.17157601]
[1721531268327,1.73145573,3521.4,3521.1,0.17157601]
[1721531268502,0.89345573,3521.3,3521.1,0.17157601]
[1721531269201,0.89345573,3521.3,3521.2,2.4969]
[1721531269399,0.89345573,3521.6,3521.4,2.4969]
[1721531269600,0.89345573,3521.7,3521.4,2.4969]
[1721531269847,1.19081973,3521.9,3521.5,0.17148243]
[1721531269848,0.89345573,3521.8,3521.5,0.17148243]
[1721531270349,0.89345573,3521.8,3521.4,2.4969]
[1721531270659,2.02881973,3521.9,3521.5,0.1714602]
[1721531270660,1.73145573,3521.9,3521.5,0.1714602]
[1721531271136,1.73145573,3521.9,3521.5,2.4969]
[1721531271338,1.73145573,3521.9,3521.6,0.17144629]
[1721531271704,0.89345573,3521.9,3521.6,0.17144629]
[1721531272321,0.838,3521.9,3521.6,0.17144629]
[1721531272555,1.73145573,3521.9,3521.6,0.17144629]
[1721531273729,0.89345573,3522.0,3521.7,2.4969]
[1721531273953,1.73145573,3522.1,3521.8,0.17140017]
[1721531274127,1.61811821,3522.1,3521.8,0.17140017]
[1721531274329,1.73145573,3522.2,3521.8,0.17140017]
[1721531275272,0.838,3522.2,3521.8,0.17140017]
[1721531275440,1.73145573,3522.2,3521.8,0.17140017]
[1721531275766,0.838,3522.2,3521.8,0.17140017]
[1721531277577,3.67713,3522.2,3521.8,0.17140017]
[1721531278754,2.83901,3522.4,3521.8,0.17140017]
[1721531279282,0.838,3522.1,3521.8,0.17140017]
[1721531279663,0.838,3522.2,3521.8,0.17140017]
[1721531280199,3.6769,3522.5,3521.9,2.3968]
[1721531280407,0.838,3522.3,3521.9,2.3968]
[1721531280558,3.67706,3522.3,3522.0,0.17126771]
[1721531281693,0.838,3522.1,3522.0,0.17126771]
[1721531282462,0.838,3522.1,3521.7,2.3968]
[1721531282997,0.838,3522.1,3521.8,0.17129552]
[1721531283395,0.838,3521.9,3521.8,0.17129552]
[1721531283697,0.838,3522.1,3521.8,0.17129552]
[1721531285680,2.83918,3522.2,3521.8,0.17129552]
[1721531286568,0.838,3522.1,3521.8,0.17129552]
[1721531286767,2.83918,3522.2,3521.8,0.17129552]
[1721531287384,0.838,3522.1,3521.8,0.17129552]
[1721531287907,3.67737,3521.9,3521.8,0.17129552]
[1721531288110,4.32903,3521.9,3521.8,0.17129552]
[1721531288407,4.32903,3521.9,3521.3,2.2886]
[1721531288408,2.83959,3521.7,3521.3,2.2886]
[1721531288715,0.838,3521.6,3521.3,2.2886]
[1721531289304,0.838,3521.6,3521.2,7.45]
[1721531289529,0.838,3521.6,3521.1,2.2886]
[1721531289689,2.83959,3521.7,3521.1,2.2886]
[1721531290089,3.67766,3521.6,3521.1,2.2886]
[1721531292820,0.838,3521.4,3521.1,2.2886]
[1721531293123,2.83995,3521.2,3520.8,14.5286]
[1721531293426,2.83995,3521.2,3520.8,2.2886]
[1721531294531,3.67781,3521.4,3520.8,2.2886]
[1721531295820,2.83981,3521.4,3520.8,2.2886]
[1721531298890,3.67766,3521.6,3520.9,2.2886]
[1721531299531,2.83972,3521.5,3520.9,2.2886]
[1721531299902,2.83972,3521.5,3520.9,2.801485]
[1721531303837,2.83972,3521.5,3521.1,2.2886]
[1721531304035,2.83954,3521.7,3521.1,2.2886]
[1721531304354,2.83954,3521.7,3521.0,3.01146677]
[1721531304355,0.89345573,3521.9,3521.3,2.2886]
[1721531304698,0.838,3521.8,3521.4,0.17135114]
[1721531305452,3.73283573,3521.9,3521.4,0.17135114]
[1721531305601,3.67738,3521.9,3521.5,2.2886]
[1721531305945,6.51681,3521.9,3521.6,0.17134032]
[1721531306102,3.73292573,3521.8,3521.6,0.17134032]
[1721531306309,0.838,3521.7,3521.6,0.17134032]
[1721531310415,1.73145573,3521.7,3521.6,0.17134032]
[1721531310620,0.89345573,3521.7,3521.6,0.17134032]
[1721531311257,3.73292573,3521.8,3521.6,0.17134032]
[1721531311558,0.89345573,3521.7,3521.6,0.17134032]
[1721531314447,4.03028973,3521.8,3521.6,0.17134032]
[1721531315361,6.86979973,3521.8,3521.6,0.17134032]
[1721531316079,4.03028973,3521.8,3521.6,0.17134032]
[1721531316571,0.89275952,3521.7,3521.6,0.17134032]
[1721531316775,0.89275808,3521.7,3521.6,0.17134032]
[1721531316936,4.03028973,3521.8,3521.6,0.17134032]
[1721531317350,0.89274966,3521.7,3521.3,2.2669]
[1721531318697,0.89274966,3521.7,3521.4,0.17134591]
[1721531319357,0.89274966,3521.6,3521.4,0.17134591]
[1721531321966,0.89274966,3521.7,3521.4,0.17134591]
[1721531323197,3.73228966,3521.7,3521.4,0.17134591]
[1721531323510,0.89274966,3521.6,3521.4,0.17134591]
[1721531329721,0.89274966,3521.6,3521.5,2.3867]
[1721531329886,0.89274966,3521.6,3521.5,2.55802677]
[1721531333612,4.03035973,3521.7,3521.5,2.55802677]
[1721531334324,0.89361017,3521.6,3521.5,2.55802677]
[1721531334474,4.03035973,3521.7,3521.5,2.55802677]
[1721531334896,2.83961,3521.6,3521.5,2.55802677]
[1721531335085,4.03042973,3521.6,3521.5,2.55802677]
[1721531335289,4.03042973,3521.6,3521.5,0.17132677]
[1721531335496,4.03042973,3521.6,3521.1,9.8367]
[1721531335683,0.89366447,3521.4,3521.1,9.8367]
[1721531336008,0.89366447,3521.5,3521.1,9.8367]
[1721531337704,2.83994,3521.2,3521.1,7.45]
[1721531340220,2.83994,3521.2,3520.9,2.3867]
[1721531340392,0.89332803,3521.1,3520.9,2.3867]
[1721531341878,3.73326803,3521.2,3520.9,2.3867]
[1721531342482,0.89332803,3521.1,3520.6,2.3867]
[1721531342790,3.73326803,3521.2,3520.6,3.88001476]
[1721531342992,0.89332803,3521.1,3520.6,3.88001476]
[1721531344010,3.73326803,3521.2,3520.6,3.88001476]
[1721531344214,0.89332803,3521.1,3520.6,3.88001476]
[1721531344785,0.89332803,3521.1,3520.7,2.3867]
[1721531344991,0.89332803,3521.1,3520.6,2.33131476]
[1721531344992,0.89332803,3521.3,3520.9,2.3867]
[1721531345422,3.73312803,3521.4,3520.9,2.3867]
[1721531347797,0.89332803,3521.3,3520.9,2.3867]
[1721531348120,3.73312803,3521.4,3520.9,2.3867]
[1721531348696,3.73312803,3521.4,3521.0,0.17140807]
[1721531349023,0.89332803,3521.3,3521.0,0.17140807]
[1721531349425,3.73312803,3521.4,3521.0,0.17140807]
[1721531351087,0.89332803,3521.3,3521.0,0.17140807]
[1721531351287,3.73312803,3521.4,3521.0,0.17140807]
[1721531352423,0.89332803,3521.3,3521.0,0.17140807]
[1721531353409,3.73312803,3521.4,3521.0,0.17140807]
[1721531357802,3.72512803,3521.4,3521.0,0.17140807]
[1721531359536,0.89332803,3521.3,3521.0,0.17140807]
[1721531360540,2.8318,3521.4,3521.0,0.17140807]
[1721531360541,3.72512803,3521.4,3521.0,0.17140807]
[1721531360904,3.73318803,3521.3,3521.0,0.17140807]
[1721531369458,2.83986,3521.3,3521.0,0.17140807]
[1721531370094,3.73318803,3521.3,3521.0,0.17140807]
[1721531370281,2.83986,3521.3,3521.0,0.17140807]
[1721531371299,3.73318803,3521.3,3521.0,0.17140807]
[1721531372309,0.89332803,3521.4,3521.0,0.17140807]
[1721531372477,0.89332803,3521.3,3521.0,0.17140807]
[1721531372810,3.73323803,3521.3,3521.0,0.17140807]
[1721531374307,0.89332803,3521.4,3521.0,0.17140807]
[1721531375221,0.89332803,3521.4,3521.1,2.4724]
[1721531375591,0.89332803,3521.4,3521.2,0.17144565]
[1721531376523,0.89332803,3521.3,3521.2,0.17144565]
[1721531383437,1.19081973,3521.4,3521.2,0.17144565]
[1721531385054,0.89356072,3521.3,3521.2,0.17144565]
[1721531385370,1.19081973,3521.4,3521.2,0.17144565]
[1721531386068,0.89358596,3521.3,3521.2,0.17144565]
[1721531390738,1.19081973,3521.4,3521.2,0.17144565]
[1721531391065,0.89374032,3521.3,3521.2,0.17144565]
[1721531391379,1.19081973,3521.4,3521.2,0.17144565]
[1721531391578,0.89373607,3521.3,3521.2,0.17144565]
[1721531391871,1.19081973,3521.4,3521.2,0.17144565]
[1721531392074,0.89373755,3521.3,3521.2,0.17144565]
[1721531392280,1.19081973,3521.4,3521.2,0.17144565]
[1721531393442,0.89384279,3521.3,3521.2,0.17144565]
[1721531393641,0.89384279,3521.3,3521.2,0.43583021]
[1721531393865,0.89384279,3521.4,3521.3,2.4778]
[1721531394175,0.89384279,3521.5,3521.3,2.64924221]
[1721531394337,0.89384279,3521.5,3521.4,3.05316268]
[1721531394537,0.89384279,3521.5,3521.4,3.22459098]
[1721531395339,0.89384279,3521.6,3521.5,2.4778]
[1721531395844,0.89384279,3521.7,3521.6,5.31741]
[1721531396070,0.89384279,3521.7,3521.6,6.29160793]
[1721531396276,0.89384279,3521.8,3521.6,6.46300972]
[1721531396579,0.89384279,3521.7,3521.6,6.46300972]
[1721531397240,0.89384279,3521.8,3521.6,6.46300972]
[1721531397436,0.89384279,3521.8,3521.7,0.98781424]